fUSD/lending_fUSD_20240302
["ID","MTS","AMOUNT","RATE_DAILY","PERIOD"]
[316052883,1709339451725,-500.0,0.00022027,2]
[316052884,1709339451734,-745.09,0.00022027,2]
[316052885,1709339451743,-1064.09,0.00022027,2]
[316052886,1709339451753,-500.0,0.00022027,2]
[316052887,1709339451762,-500.0,0.00022027,2]
[316052888,1709339451771,-500.0,0.00022027,2]
[316052889,1709339451780,-500.0,0.00022027,2]
[316052890,1709339451790,-1390.77,0.00022027,2]
[316052891,1709339451800,-500.0,0.00022027,2]
[316052892,1709339451809,-500.0,0.00022027,2]
[316052893,1709339451818,-151.0,0.00022027,7]
[316052894,1709339451827,-1362.58,0.00022027,2]
[316052895,1709339451837,-500.0,0.00022027,2]
[316052896,1709339451846,-529.41,0.00022027,2]
[316052897,1709339451856,-500.0,0.00022027,2]
[316052898,1709339451865,-1769.51,0.00022027,2]
[316052899,1709339451875,-500.0,0.00022027,2]
[316052900,1709339451885,-500.0,0.00022027,2]
[316052901,1709339451894,-500.0,0.00022027,2]
[316052902,1709339451903,-316.42732148,0.00022027,2]
[316052903,1709339451912,-1294.73,0.00022027,2]
[316052904,1709339451921,-500.0,0.00022027,2]
[316052905,1709339451931,-500.0,0.00022027,2]
[316052906,1709339451940,-1433.77,0.00022027,2]
[316052907,1709339451950,-809.78,0.00022027,2]
[316052908,1709339451959,-481.82898737,0.00022027,2]
[316052909,1709339451968,-500.0,0.00022027,2]
[316052910,1709339451978,-500.0,0.00022027,2]
[316052911,1709339451987,-500.0,0.00022027,2]
[316052912,1709339451996,-851.19,0.00022027,2]
[316052913,1709339452006,-979.81,0.00022027,2]
[316052914,1709339452016,-500.0,0.00022027,2]
[316052915,1709339452026,-500.0,0.00022027,2]
[316052916,1709339452036,-500.0,0.00022027,2]
[316052917,1709339452046,-513.07,0.00022027,2]
[316052918,1709339452056,-500.0,0.00022027,2]
[316052919,1709339452067,-500.0,0.00022027,2]
[316052920,1709339452076,-684.63,0.00022027,2]
[316052921,1709339452086,-500.0,0.00022027,2]
[316052922,1709339452096,-500.0,0.00022027,2]
[316052923,1709339452107,-544.78,0.00022027,2]
[316052924,1709339452116,-500.0,0.00022027,2]
[316052925,1709339452125,-726.26,0.00022027,2]
[316052926,1709339452135,-733.5,0.00022027,2]
[316052927,1709339452145,-500.0,0.00022027,2]
[316052928,1709339452155,-500.0,0.00022027,2]
[316052929,1709339452164,-500.0,0.00022027,2]
[316052930,1709339452173,-213.295775,0.00022027,7]
[316052931,1709339452183,-785.9,0.00022027,2]
[316052932,1709339452193,-500.0,0.00022027,2]
[316052933,1709339452203,-500.0,0.00022027,2]
[316052934,1709339452213,-500.0,0.00022027,2]
[316052935,1709339452222,-697.04,0.00022027,2]
[316052936,1709339452233,-500.0,0.00022027,2]
[316052937,1709339452243,-571.19,0.00022027,2]
[316052938,1709339452253,-727.29,0.00022027,2]
[316052939,1709339452264,-997.71,0.00022027,2]
[316052940,1709339452275,-500.0,0.00022027,2]
[316052941,1709339452288,-1061.39,0.00022027,2]
[316052942,1709339452298,-1221.7,0.00022027,2]
[316052943,1709339452307,-500.0,0.00022027,2]
[316052944,1709339452317,-500.0,0.00022027,2]
[316052945,1709339452327,-500.0,0.00022027,2]
[316052946,1709339452337,-1314.78,0.00022027,2]
[316052947,1709339452352,-500.0,0.00022027,2]
[316052948,1709339452362,-500.0,0.00022027,2]
[316052949,1709339452372,-866.73,0.00022027,2]
[316052950,1709339452381,-500.0,0.00022027,2]
[316052951,1709339452391,-151.0,0.00022027,2]
[316052952,1709339452402,-506.49999707,0.00022027,2]
[316052953,1709339452412,-151.0,0.00022027,2]
[316052954,1709339452421,-500.0,0.00022027,2]
[316052955,1709339452431,-503.30590547,0.00022027,2]
[316052956,1709339452441,-500.0,0.00022027,2]
[316052957,1709339452450,-500.0,0.00022027,2]
[316052958,1709339452460,-500.0,0.00022027,2]
[316052959,1709339452470,-827.95,0.00022027,2]
[316052960,1709339452479,-500.0,0.00022027,2]
[316052961,1709339452489,-500.0,0.00022027,2]
[316052962,1709339452499,-500.0,0.00022027,2]
[316052963,1709339452509,-523.47,0.00022027,2]
[316052964,1709339452519,-500.0,0.00022027,2]
[316052965,1709339452529,-584.82,0.00022027,2]
[316052966,1709339452539,-500.0,0.00022027,2]
[316052967,1709339452550,-1003.0,0.00022027,2]
[316052968,1709339452560,-321.11541323,0.00022027,2]
[316052969,1709339452570,-500.0,0.00022027,2]
[316052970,1709339452580,-500.0,0.00022027,2]
[316052971,1709339452590,-500.0,0.00022027,2]
[316052972,1709339452601,-500.0,0.00022027,2]
[316052973,1709339452610,-500.0,0.00022027,2]
[316052974,1709339452621,-579.45,0.00022027,2]
[316052975,1709339452630,-819.53,0.00022027,2]
[316052976,1709339452641,-600.07,0.00022027,2]
[316052977,1709339452651,-852.51,0.00022027,2]
[316052978,1709339452662,-500.0,0.00022027,2]
[316052979,1709339452671,-500.0,0.00022027,2]
[316052980,1709339452681,-916.96,0.00022027,2]
[316052981,1709339452691,-500.0,0.00022027,2]
[316052982,1709339452701,-654.79,0.00022027,2]
[316052983,1709339452711,-500.0,0.00022027,2]
[316052984,1709339452722,-500.0,0.00022027,2]
[316052985,1709339452732,-1354.86,0.00022027,2]
[316052986,1709339452742,-500.0,0.00022027,2]
[316052987,1709339452752,-891.25,0.00022027,2]
[316052988,1709339452762,-500.0,0.00022027,2]
[316052989,1709339452773,-957.77,0.00022027,2]
[316052990,1709339452782,-500.0,0.00022027,2]
[316052991,1709339452792,-500.0,0.00022027,2]
[316052992,1709339452803,-500.0,0.00022027,2]
[316052993,1709339452813,-500.0,0.00022027,2]
[316052994,1709339452822,-500.0,0.00022027,2]
[316052995,1709339452832,-500.0,0.00022027,2]
[316052996,1709339452841,-500.0,0.00022027,2]
[316052997,1709339452851,-500.0,0.00022027,2]
[316052998,1709339452860,-538.22,0.00022027,2]
[316052999,1709339452869,-1493.34,0.00022027,2]
[316053000,1709339452879,-853.74,0.00022027,2]
[316053001,1709339452889,-500.0,0.00022027,2]
[316053002,1709339452899,-641.37,0.00022027,2]
[316053003,1709339452908,-500.0,0.00022027,2]
[316053004,1709339452919,-1532.95,0.00022027,2]
[316053005,1709339452929,-500.0,0.00022027,2]
[316053006,1709339452940,-151.0,0.00022027,7]
[316053007,1709339452951,-1034.3,0.00022027,2]
[316053008,1709339452962,-500.0,0.00022027,2]
[316053009,1709339452972,-500.0,0.00022027,2]
[316053010,1709339452982,-500.0,0.00022027,2]
[316053011,1709339452992,-553.83051619,0.00022027,2]
[316053012,1709339453003,-731.91,0.00022027,2]
[316053013,1709339453013,-589.0,0.00022027,2]
[316053014,1709339453023,-500.0,0.00022027,2]
[316053015,1709339453033,-500.0,0.00022027,2]
[316053016,1709339453047,-500.0,0.00022027,2]
[316053017,1709339453057,-1830.97,0.00022027,2]
[316053018,1709339453067,-512.96,0.00022027,2]
[316053019,1709339453077,-1138.77,0.00022027,2]
[316053020,1709339453087,-500.0,0.00022027,2]
[316053021,1709339453097,-500.0,0.00022027,2]
[316053022,1709339453106,-643.82,0.00022027,2]
[316053023,1709339453116,-637.59,0.00022027,2]
[316053024,1709339453126,-500.0,0.00022027,2]
[316053025,1709339453136,-500.0,0.00022027,2]
[316053026,1709339453145,-500.0,0.00022027,2]
[316053027,1709339453156,-1128.6,0.00022027,2]
[316053028,1709339453165,-500.0,0.00022027,2]
[316053029,1709339453175,-901.65,0.00022027,2]
[316053030,1709339453185,-1001.24,0.00022027,2]
[316053031,1709339453195,-500.0,0.00022027,2]
[316053032,1709339453205,-466.73452022,0.00022027,2]
[316053033,1709339453215,-500.0,0.00022027,2]
[316053034,1709339453224,-500.0,0.00022027,2]
[316053035,1709339453234,-500.0,0.00022027,2]
[316053036,1709339453244,-572.4,0.00022027,2]
[316053037,1709339453254,-835.39,0.00022027,2]
[316053038,1709339453268,-500.0,0.00022027,2]
[316053039,1709339453278,-544.95,0.00022027,2]
[316053040,1709339453288,-758.39,0.00022027,2]
[316053041,1709339453300,-500.0,0.00022027,2]
[316053042,1709339453310,-500.0,0.00022027,2]
[316053043,1709339453321,-500.0,0.00022027,2]
[316053044,1709339453331,-661.31,0.00022027,2]
[316053045,1709339453341,-500.0,0.00022027,2]
[316053046,1709339453353,-563.64,0.00022027,2]
[316053047,1709339453364,-151.0,0.00022027,2]
[316053048,1709339453374,-151.0,0.00022027,2]
[316053049,1709339453385,-750.71,0.00022027,2]
[316053050,1709339453395,-500.0,0.00022027,2]
[316053051,1709339453405,-500.0,0.00022027,2]
[316053052,1709339453415,-500.0,0.00022027,2]
[316053053,1709339453425,-500.0,0.00022027,2]
[316053054,1709339453435,-500.0,0.00022027,2]
[316053055,1709339453446,-661.13,0.00022027,2]
[316053056,1709339453455,-500.0,0.00022027,2]
[316053057,1709339453465,-614.67,0.00022027,2]
[316053058,1709339453476,-833.52,0.00022027,2]
[316053059,1709339453486,-151.0,0.00022027,7]
[316053060,1709339453496,-151.0,0.00022027,7]
[316053061,1709339453506,-200.184249,0.00022027,3]
[316053062,1709339453517,-200.184249,0.00022027,3]
[316053063,1709339453527,-891.42,0.00022027,2]
[316053064,1709339453538,-500.0,0.00022027,2]
[316053065,1709339453550,-619.33427648,0.00022027,2]
[316053066,1709339453561,-500.0,0.00022027,2]
[316053067,1709339453572,-702.62,0.00022027,2]
[316053068,1709339453582,-608.36,0.00022027,2]
[316053069,1709339453592,-500.0,0.00022027,2]
[316053070,1709339453603,-200.184249,0.00022027,3]
[316053071,1709339453614,-200.184249,0.00022027,3]
[316053072,1709339453624,-605.63,0.00022027,2]
[316053073,1709339453634,-500.0,0.00022027,2]
[316053074,1709339453644,-500.0,0.00022027,2]
[316053075,1709339453654,-350.67744545,0.00022027,2]
[316053076,1709339453664,-615.78,0.00022027,2]
[316053077,1709339453674,-500.0,0.00022027,2]
[316053078,1709339453684,-500.0,0.00022027,2]
[316053079,1709339453694,-500.0,0.00022027,2]
[316053080,1709339453704,-500.0,0.00022027,2]
[316053081,1709339453714,-754.73,0.00022027,2]
[316053082,1709339453724,-500.0,0.00022027,2]
[316053083,1709339453734,-500.0,0.00022027,2]
[316053084,1709339453744,-697.3,0.00022027,2]
[316053085,1709339453753,-500.0,0.00022027,2]
[316053086,1709339453763,-500.0,0.00022027,2]
[316053087,1709339453773,-500.0,0.00022027,2]
[316053088,1709339453782,-565.7,0.00022027,2]
[316053089,1709339453792,-500.0,0.00022027,2]
[316053090,1709339453804,-602.95,0.00022027,2]
[316053091,1709339453815,-500.0,0.00022027,2]
[316053092,1709339453825,-622.53,0.00022027,2]
[316053093,1709339453835,-500.0,0.00022027,2]
[316053094,1709339453845,-500.0,0.00022027,2]
[316053095,1709339453855,-574.4,0.00022027,2]
[316053096,1709339453865,-500.0,0.00022027,2]
[316053097,1709339453875,-651.87,0.00022027,2]
[316053098,1709339453885,-500.0,0.00022027,2]
[316053099,1709339453895,-500.0,0.00022027,2]
[316053100,1709339453904,-532.25,0.00022027,2]
[316053101,1709339453914,-541.7,0.00022027,2]
[316053102,1709339453924,-500.0,0.00022027,2]
[316053103,1709339453934,-1599.25,0.00022027,2]
[316053104,1709339453943,-552.74,0.00022027,2]
[316053105,1709339453953,-500.0,0.00022027,2]
[316053106,1709339453962,-500.0,0.00022027,2]
[316053107,1709339453972,-500.0,0.00022027,2]
[316053108,1709339453981,-500.0,0.00022027,2]
[316053109,1709339453991,-500.0,0.00022027,2]
[316053110,1709339454000,-500.0,0.00022027,2]
[316053111,1709339454010,-322.379666,0.00022027,7]
[316053112,1709339454019,-500.0,0.00022027,2]
[316053113,1709339454028,-322.379666,0.00022027,7]
[316053114,1709339454038,-500.0,0.00022027,2]
[316053115,1709339454047,-594.98,0.00022027,2]
[316053116,1709339454058,-719.99,0.00022027,2]
[316053117,1709339454068,-500.0,0.00022027,2]
[316053118,1709339454078,-500.0,0.00022027,2]
[316053119,1709339454088,-595.04,0.00022027,2]
[316053120,1709339454098,-322.379666,0.00022027,7]
[316053121,1709339454107,-322.379666,0.00022027,7]
[316053122,1709339454117,-500.0,0.00022027,2]
[316053123,1709339454127,-500.0,0.00022027,2]
[316053124,1709339454136,-500.0,0.00022027,2]
[316053125,1709339454146,-929.66,0.00022027,2]
[316053126,1709339454156,-640.65,0.00022027,2]
[316053127,1709339454166,-500.0,0.00022027,2]
[316053128,1709339454467,-635.68150916,0.00022027,2]
[316053129,1709339454477,-1357.68,0.00022027,2]
[316053130,1709339454487,-500.0,0.00022027,2]
[316053131,1709339454497,-500.0,0.00022027,2]
[316053132,1709339454506,-150.0,0.00022027,2]
[316053133,1709339454515,-500.0,0.00022027,2]
[316053134,1709339454524,-500.0,0.00022027,2]
[316053135,1709339454534,-500.0,0.00022027,2]
[316053136,1709339454543,-500.0,0.00022027,2]
[316053137,1709339454553,-967.74,0.00022027,2]
[316053138,1709339454562,-500.0,0.00022027,2]
[316053139,1709339454573,-500.0,0.00022027,2]
[316053140,1709339454582,-500.0,0.00022027,2]
[316053141,1709339454592,-500.0,0.00022027,2]
[316053142,1709339454601,-500.0,0.00022027,2]
[316053143,1709339454610,-500.0,0.00022027,2]
[316053144,1709339454620,-1161.63,0.00022027,2]
[316053145,1709339454629,-500.0,0.00022027,2]
[316053146,1709339454639,-1377.29,0.00022027,2]
[316053147,1709339454648,-500.0,0.00022027,2]
[316053148,1709339454658,-1237.89,0.00022027,2]
[316053149,1709339454667,-500.0,0.00022027,2]
[316053150,1709339454677,-151.0,0.00022027,7]
[316053151,1709339454686,-500.0,0.00022027,2]
[316053152,1709339454695,-151.0,0.00022027,7]
[316053153,1709339454705,-903.67,0.00022027,2]
[316053154,1709339454715,-500.0,0.00022027,2]
[316053155,1709339454725,-545.51,0.00022027,2]
[316053156,1709339454734,-500.0,0.00022027,2]
[316053157,1709339454744,-1239.55,0.00022027,2]
[316053158,1709339454754,-500.0,0.00022027,2]
[316053159,1709339454763,-500.0,0.00022027,2]
[316053160,1709339454773,-500.0,0.00022027,2]
[316053161,1709339454782,-151.0,0.00022027,7]
[316053162,1709339454791,-986.01,0.00022027,2]
[316053163,1709339454801,-151.0,0.00022027,7]
[316053164,1709339454810,-500.0,0.00022027,2]
[316053165,1709339454819,-500.0,0.00022027,2]
[316053166,1709339454828,-500.0,0.00022027,2]
[316053167,1709339454837,-500.0,0.00022027,2]
[316053168,1709339454847,-500.0,0.00022027,2]
[316053169,1709339454857,-500.0,0.00022027,2]
[316053170,1709339454867,-1250.95,0.00022027,2]
[316053171,1709339454876,-500.0,0.00022027,2]
[316053172,1709339454885,-766.61,0.00022027,2]
[316053173,1709339454895,-762.24,0.00022027,2]
[316053174,1709339454905,-4341.48,0.00022027,2]
[316053175,1709339454915,-500.0,0.00022027,2]
[316053176,1709339454925,-500.0,0.00022027,2]
[316053177,1709339454935,-1132.67,0.00022027,2]
[316053178,1709339454945,-1349.17,0.00022027,2]
[316053179,1709339454955,-516.48568321,0.00022027,2]
[316053180,1709339454965,-500.0,0.00022027,2]
[316053181,1709339454975,-500.0,0.00022027,2]
[316053182,1709339454986,-500.0,0.00022027,2]
[316053183,1709339454996,-522.07708817,0.00022027,2]
[316053184,1709339455006,-913.35,0.00022027,2]
[316053185,1709339455016,-2024.87,0.00022027,2]
[316053186,1709339455028,-500.0,0.00022027,2]
[316053187,1709339455038,-2253.34,0.00022027,2]
[316053188,1709339455051,-183.281933,0.00022027,7]
[316053189,1709339455062,-500.0,0.00022027,2]
[316053190,1709339455074,-7884.56,0.00022027,2]
[316053191,1709339455084,-516.01,0.00022027,2]
[316053192,1709339455095,-500.0,0.00022027,2]
[316053193,1709339455106,-888.02,0.00022027,2]
[316053194,1709339455117,-500.0,0.00022027,2]
[316053195,1709339455127,-9451.85,0.00022027,2]
[316053196,1709339455137,-1029.84,0.00022027,2]
[316053197,1709339455148,-690.79,0.00022027,2]
[316053198,1709339455158,-500.0,0.00022027,2]
[316053199,1709339455169,-2324.78,0.00022027,2]
[316053200,1709339455179,-1117.77,0.00022027,2]
[316053201,1709339455189,-5409.36,0.00022027,2]
[316053202,1709339455199,-965.14,0.00022027,2]
[316053203,1709339455209,-1021.7413,0.00022027,7]
[316053204,1709339455220,-1021.7413,0.00022027,7]
[316053205,1709339455232,-500.0,0.00022027,2]
[316053206,1709339455243,-500.0,0.00022027,2]
[316053207,1709339455253,-1150.05,0.00022027,2]
[316053208,1709339455265,-1021.7413,0.00022027,7]
[316053209,1709339455276,-1021.7413,0.00022027,7]
[316053210,1709339455289,-2061.55,0.00022027,2]
[316053211,1709339455302,-500.0,0.00022027,2]
[316053212,1709339455314,-993.29,0.00022027,2]
[316053213,1709339455327,-500.0,0.00022027,2]
[316053214,1709339455338,-500.0,0.00022027,2]
[316053215,1709339455351,-151.0,0.00022027,7]
[316053216,1709339455362,-500.0,0.00022027,2]
[316053217,1709339455373,-699.71,0.00022027,2]
[316053218,1709339455385,-3029.05,0.00022027,2]
[316053219,1709339455395,-151.0,0.00022027,7]
[316053220,1709339455406,-500.0,0.00022027,2]
[316053221,1709339455418,-500.0,0.00022027,2]
[316053222,1709339455430,-500.0,0.00022027,2]
[316053223,1709339455440,-1072.7,0.00022027,2]
[316053224,1709339455452,-808.02,0.00022027,2]
[316053225,1709339455463,-500.0,0.00022027,2]
[316053226,1709339455473,-940.01,0.00022027,2]
[316053227,1709339455483,-2946.74,0.00022027,2]
[316053228,1709339455493,-500.0,0.00022027,2]
[316053229,1709339455503,-500.0,0.00022027,2]
[316053230,1709339455513,-1853.34,0.00022027,2]
[316053231,1709339455523,-4398.88,0.00022027,2]
[316053232,1709339455533,-500.0,0.00022027,2]
[316053233,1709339455543,-500.0,0.00022027,2]
[316053234,1709339455763,-8329.76,0.00022027,2]
[316053235,1709339455773,-1369.94,0.00022027,2]
[316053236,1709339455783,-500.0,0.00022027,2]
[316053237,1709339455792,-500.0,0.00022027,2]
[316053238,1709339455804,-880.57,0.00022027,2]
[316053239,1709339455813,-500.0,0.00022027,2]
[316053240,1709339455823,-616.72,0.00022027,2]
[316053241,1709339455832,-500.0,0.00022027,2]
[316053242,1709339455842,-500.0,0.00022027,2]
[316053243,1709339455851,-1679.14,0.00022027,2]
[316053244,1709339455861,-1332.35,0.00022027,2]
[316053245,1709339455870,-1895.3,0.00022027,2]
[316053246,1709339455879,-500.0,0.00022027,2]
[316053247,1709339455889,-4146.4,0.00022027,2]
[316053248,1709339455899,-881.15,0.00022027,2]
[316053249,1709339455908,-3187.28,0.00022027,2]
[316053250,1709339455918,-1152.54,0.00022027,2]
[316053251,1709339455927,-500.0,0.00022027,2]
[316053252,1709339455937,-508.54,0.00022027,2]
[316053253,1709339455947,-654.84,0.00022027,2]
[316053254,1709339455957,-500.0,0.00022027,2]
[316053255,1709339455967,-506.25,0.00022027,2]
[316053256,1709339455978,-4047.4,0.00022027,2]
[316053257,1709339455989,-523.43,0.00022027,2]
[316053258,1709339455999,-14968.3,0.00022027,2]
[316053259,1709339456010,-1105.28,0.00022027,2]
[316053260,1709339456020,-514.40211081,0.00022027,2]
[316053261,1709339456031,-500.0,0.00022027,2]
[316053262,1709339456042,-500.0,0.00022027,2]
[316053263,1709339456054,-764.44,0.00022027,2]
[316053264,1709339456063,-1739.61,0.00022027,2]
[316053265,1709339456072,-500.0,0.00022027,2]
[316053266,1709339456081,-500.0,0.00022027,2]
[316053267,1709339456091,-1060.75,0.00022027,2]
[316053268,1709339456101,-12894.82,0.00022027,2]
[316053269,1709339456110,-260.835192,0.00022027,7]
[316053270,1709339456119,-260.835192,0.00022027,7]
[316053271,1709339456128,-500.0,0.00022027,2]
[316053272,1709339456138,-4145.33,0.00022027,2]
[316053273,1709339456148,-678.68,0.00022027,2]
[316053274,1709339456157,-1013.92,0.00022027,2]
[316053275,1709339456166,-260.835192,0.00022027,7]
[316053276,1709339456175,-260.835192,0.00022027,7]
[316053277,1709339456185,-500.0,0.00022027,2]
[316053278,1709339456195,-500.0,0.00022027,2]
[316053279,1709339456204,-21076.21,0.00022027,2]
[316053280,1709339456214,-500.0,0.00022027,2]
[316053281,1709339456224,-500.0,0.00022027,2]
[316053282,1709339456233,-500.0,0.00022027,2]
[316053283,1709339456243,-2314.55,0.00022027,2]
[316053284,1709339456252,-1421.34,0.00022027,2]
[316053285,1709339456263,-500.0,0.00022027,2]
[316053286,1709339456272,-2162.91,0.00022027,2]
[316053287,1709339456282,-1009.77,0.00022027,2]
[316053288,1709339456293,-500.0,0.00022027,2]
[316053289,1709339456304,-31058.01,0.00022027,2]
[316053290,1709339456314,-563.26,0.00022027,2]
[316053291,1709339456324,-500.0,0.00022027,2]
[316053292,1709339456334,-500.0,0.00022027,2]
[316053293,1709339456343,-500.0,0.00022027,2]
[316053294,1709339456353,-500.0,0.00022027,2]
[316053295,1709339456364,-500.0,0.00022027,2]
[316053296,1709339456373,-8410.06,0.00022027,2]
[316053297,1709339456383,-914.6,0.00022027,2]
[316053298,1709339456392,-500.0,0.00022027,2]
[316053299,1709339456401,-770.23,0.00022027,2]
[316053300,1709339456411,-658.66,0.00022027,2]
[316053301,1709339456420,-3025.68,0.00022027,2]
[316053302,1709339456430,-757.93,0.00022027,2]
[316053303,1709339456439,-1309.26,0.00022027,2]
[316053304,1709339456448,-3794.51,0.00022027,2]
[316053305,1709339456458,-500.0,0.00022027,2]
[316053306,1709339456467,-2362.33,0.00022027,2]
[316053307,1709339456476,-818.76,0.00022027,2]
[316053308,1709339456485,-1715.39,0.00022027,2]
[316053309,1709339456495,-500.0,0.00022027,2]
[316053310,1709339456504,-500.0,0.00022027,2]
[316053311,1709339456514,-500.0,0.00022027,2]
[316053312,1709339456523,-789.18,0.00022027,2]
[316053313,1709339456533,-500.0,0.00022027,2]
[316053314,1709339456542,-13101.94,0.00022027,2]
[316053315,1709339456552,-500.0,0.00022027,2]
[316053316,1709339456561,-500.0,0.00022027,2]
[316053317,1709339456570,-731.24,0.00022027,2]
[316053318,1709339456579,-4628.26,0.00022027,2]
[316053319,1709339456589,-500.0,0.00022027,2]
[316053320,1709339456597,-2049.61,0.00022027,2]
[316053321,1709339456607,-2052.52,0.00022027,2]
[316053322,1709339456616,-500.0,0.00022027,2]
[316053323,1709339456625,-1033.37,0.00022027,2]
[316053324,1709339456635,-500.0,0.00022027,2]
[316053325,1709339456645,-500.0,0.00022027,2]
[316053326,1709339456654,-666.47,0.00022027,2]
[316053327,1709339456664,-500.0,0.00022027,2]
[316053328,1709339456674,-847.34,0.00022027,2]
[316053329,1709339456683,-500.0,0.00022027,2]
[316053330,1709339456692,-508.3135829,0.00022027,2]
[316053331,1709339456701,-1201.11,0.00022027,2]
[316053332,1709339456710,-353.59462809,0.00022027,2]
[316053333,1709339456719,-942.97,0.00022027,2]
[316053334,1709339456728,-771.97,0.00022027,2]
[316053335,1709339456738,-1128.09,0.00022027,2]
[316053336,1709339456747,-500.0,0.00022027,2]
[316053337,1709339456756,-1204.51,0.00022027,2]
[316053338,1709339456766,-718.2,0.00022027,2]
[316053339,1709339456775,-500.0,0.00022027,2]
[316053340,1709339456784,-2565.14,0.00022027,2]
[316053341,1709339456793,-500.0,0.00022027,2]
[316053342,1709339456803,-645.83,0.00022027,2]
[316053343,1709339456813,-596.8,0.00022027,2]
[316053344,1709339456823,-1441.86,0.00022027,2]
[316053345,1709339456832,-3189.19,0.00022027,2]
[316053346,1709339456841,-933.22,0.00022027,2]
[316053347,1709339456850,-1081.51,0.00022027,2]
[316053348,1709339456859,-810.88,0.00022027,2]
[316053349,1709339456868,-4304.97,0.00022027,2]
[316053350,1709339456877,-500.0,0.00022027,2]
[316053351,1709339456886,-2089.97,0.00022027,2]
[316053352,1709339456896,-704.06,0.00022027,2]
[316053353,1709339456905,-505.16,0.00022027,2]
[316053354,1709339456914,-500.0,0.00022027,2]
[316053355,1709339456923,-2402.7,0.00022027,2]
[316053356,1709339456932,-151.0,0.00022027,2]
[316053357,1709339456941,-151.0,0.00022027,2]
[316053358,1709339456951,-1338.67,0.00022027,2]
[316053359,1709339456960,-503.17,0.00022027,2]
[316053360,1709339456970,-775.58,0.00022027,2]
[316053361,1709339456979,-151.0,0.00022027,2]
[316053362,1709339456988,-997.36,0.00022027,2]
[316053363,1709339456997,-151.0,0.00022027,2]
[316053364,1709339457075,-1491.02,0.00022027,2]
[316053365,1709339457084,-500.0,0.00022027,2]
[316053366,1709339457093,-500.0,0.00022027,2]
[316053367,1709339457102,-500.0,0.00022027,2]
[316053368,1709339457111,-604.97,0.00022027,2]
[316053369,1709339457120,-964.14,0.00022027,2]
[316053370,1709339457129,-1081.72,0.00022027,2]
[316053371,1709339457138,-500.0,0.00022027,2]
[316053372,1709339457147,-2025.22,0.00022027,2]
[316053373,1709339457156,-2558.2,0.00022027,2]
[316053374,1709339457166,-500.0,0.00022027,2]
[316053375,1709339457175,-500.0,0.00022027,2]
[316053376,1709339457185,-500.0,0.00022027,2]
[316053377,1709339457195,-500.0,0.00022027,2]
[316053378,1709339457205,-1180.33,0.00022027,2]
[316053379,1709339457214,-279.886984,0.00022027,7]
[316053380,1709339457224,-279.886984,0.00022027,7]
[316053381,1709339457234,-601.73,0.00022027,2]
[316053382,1709339457243,-279.886984,0.00022027,7]